fUSD/lending_fUSD_20250202
["ID","MTS","AMOUNT","RATE_DAILY","PERIOD"]
[351308035,1738511446994,-561.08,0.00011231,2]
[351308036,1738511447004,-500.0,0.00011231,2]
[351308037,1738511447013,-500.0,0.00011231,2]
[351308038,1738511447023,-500.0,0.00011231,2]
[351308039,1738511447032,-515.69,0.00011231,2]
[351308040,1738511447041,-653.67,0.00011231,2]
[351308041,1738511447051,-500.0,0.00011231,2]
[351308042,1738511447060,-1093.31,0.00011231,2]
[351308043,1738511447069,-1053.18,0.00011231,2]
[351308044,1738511447079,-500.0,0.00011231,2]
[351308045,1738511447088,-500.0,0.00011231,2]
[351308046,1738511447097,-1273.51,0.00011231,2]
[351308047,1738511447107,-522.28,0.00011231,2]
[351308048,1738511447116,-1239.31,0.00011231,2]
[351308049,1738511447125,-740.34,0.00011231,2]
[351308050,1738511447136,-500.0,0.00011231,2]
[351308051,1738511447145,-500.0,0.00011231,2]
[351308052,1738511447155,-644.61,0.00011231,2]
[351308053,1738511447165,-913.35,0.00011231,2]
[351308054,1738511447175,-500.0,0.00011231,2]
[351308055,1738511447184,-1062.0,0.00011231,2]
[351308056,1738511447194,-1115.18,0.00011231,2]
[351308057,1738511447203,-945.68,0.00011231,2]
[351308058,1738511447212,-607.69,0.00011231,2]
[351308059,1738511447221,-500.0,0.00011231,2]
[351308060,1738511447230,-500.0,0.00011231,2]
[351308061,1738511447240,-522.96,0.00011231,2]
[351308062,1738511447251,-1647.72,0.00011231,2]
[351308063,1738511447262,-1035.26,0.00011231,2]
[351308064,1738511447271,-500.0,0.00011231,2]
[351308065,1738511447282,-2196.81,0.00011231,2]
[351308066,1738511447292,-500.0,0.00011231,2]
[351308067,1738511447301,-1325.26,0.00011231,2]
[351308068,1738511447312,-573.22,0.00011231,2]
[351308069,1738511447322,-975.31,0.00011231,2]
[351308070,1738511447332,-1985.37,0.00011231,2]
[351308071,1738511447343,-500.0,0.00011231,2]
[351308072,1738511447355,-500.0,0.00011231,2]
[351308073,1738511447364,-918.08,0.00011231,2]
[351308074,1738511447373,-2083.26,0.00011231,2]
[351308075,1738511447382,-1965.57,0.00011231,2]
[351308076,1738511447393,-1323.45,0.00011231,2]
[351308077,1738511447403,-1635.63,0.00011231,2]
[351308078,1738511447412,-500.0,0.00011231,2]
[351308079,1738511447422,-774.16,0.00011231,2]
[351308080,1738511447431,-5662.33,0.00011231,2]
[351308081,1738511447440,-7030.17,0.00011231,2]
[351308082,1738511447450,-782.48,0.00011231,2]
[351308083,1738511447459,-2514.52,0.00011231,2]
[351308084,1738511447469,-681.48,0.00011231,2]
[351308085,1738511447479,-790.42,0.00011231,2]
[351308086,1738511447490,-3657.25,0.00011231,2]
[351308087,1738511447499,-500.0,0.00011231,2]
[351308088,1738511447508,-3049.12,0.00011231,2]
[351308089,1738511447518,-500.0,0.00011231,2]
[351308090,1738511447527,-1745.16,0.00011231,2]
[351308091,1738511447537,-1031.35,0.00011231,2]
[351308092,1738511447546,-1816.81,0.00011231,2]
[351308093,1738511447556,-500.0,0.00011231,2]
[351308094,1738511447566,-528.0,0.00011231,2]
[351308095,1738511447575,-602.22,0.00011231,2]
[351308096,1738511447584,-4052.48,0.00011231,2]
[351308097,1738511447593,-500.0,0.00011231,2]
[351308098,1738511447602,-1474.86,0.00011231,2]
[351308099,1738511447612,-4337.5,0.00011231,2]
[351308100,1738511447622,-1297.61,0.00011231,2]
[351308101,1738511447631,-1453.24,0.00011231,2]
[351308102,1738511447641,-1696.27,0.00011231,2]
[351308103,1738511447650,-1292.86,0.00011231,2]
[351308104,1738511447660,-734.3,0.00011231,2]
[351308105,1738511447669,-1155.8,0.00011231,2]
[351308106,1738511447679,-1512.01,0.00011231,2]
[351308107,1738511447689,-1336.03,0.00011231,2]
[351308108,1738511447699,-500.0,0.00011231,2]
[351308109,1738511447709,-686.62,0.00011231,2]
[351308110,1738511447718,-1393.61,0.00011231,2]
[351308111,1738511447727,-500.0,0.00011231,2]
[351308112,1738511447736,-500.0,0.00011231,2]
[351308113,1738511447746,-1657.23,0.00011231,2]
[351308114,1738511447755,-1120.37,0.00011231,2]
[351308115,1738511447764,-823.51,0.00011231,2]
[351308116,1738511447773,-500.0,0.00011232,2]
[351308117,1738511447782,-500.0,0.00011232,2]
[351308118,1738511447791,-501.51856003,0.00011232,2]
[351308119,1738511447800,-500.0,0.00011232,2]
[351308120,1738511447809,-500.0,0.00011232,2]
[351308121,1738511447818,-500.0,0.00011232,2]
[351308122,1738511447827,-500.0,0.00011232,2]
[351308123,1738511447837,-500.0,0.00011232,2]
[351308124,1738511447847,-500.0,0.00011232,2]
[351308125,1738511447856,-500.0,0.00011232,2]
[351308126,1738511447865,-500.0,0.00011232,2]
[351308127,1738511447875,-500.0,0.00011232,2]
[351308128,1738511447884,-500.0,0.00011232,2]
[351308129,1738511447894,-663.36,0.00011232,2]
[351308130,1738511447904,-500.0,0.00011232,2]
[351308131,1738511447913,-500.0,0.00011232,2]
[351308132,1738511447923,-500.0,0.00011232,2]
[351308133,1738511447932,-500.0,0.00011232,2]
[351308134,1738511447942,-307.17587087,0.00011232,2]
[351308135,1738511447951,-500.0,0.00011232,2]
[351308136,1738511447961,-500.0,0.00011232,2]
[351308137,1738511447971,-500.0,0.00011232,2]
[351308138,1738511447980,-500.0,0.00011232,2]
[351308139,1738511447989,-500.0,0.00011232,2]
[351308140,1738511447999,-500.0,0.00011232,2]
[351308141,1738511448008,-500.0,0.00011232,2]
[351308142,1738511448018,-500.0,0.00011232,2]
[351308143,1738511448027,-500.0,0.00011232,2]
[351308144,1738511448037,-500.0,0.00011232,2]
[351308145,1738511448046,-500.0,0.00011232,2]
[351308146,1738511448056,-500.0,0.00011232,2]
[351308147,1738511448065,-500.0,0.00011232,2]
[351308148,1738511448075,-500.0,0.00011232,2]
[351308149,1738511448086,-698.15,0.00011232,2]
[351308150,1738511448096,-467.9569712,0.00011232,2]
[351308151,1738511448105,-500.0,0.00011232,2]
[351308152,1738511448114,-500.0,0.00011232,2]
[351308153,1738511448124,-500.0,0.00011232,2]
[351308154,1738511448133,-500.0,0.00011232,2]
[351308155,1738511448143,-500.0,0.00011232,2]
[351308156,1738511448153,-500.0,0.00011232,2]
[351308157,1738511448162,-266.55623525,0.00011232,2]
[351308158,1738511448172,-500.0,0.00011232,2]
[351308159,1738511448182,-500.0,0.00011232,2]
[351308160,1738511448192,-500.0,0.00011232,2]
[351308161,1738511448202,-500.0,0.00011232,2]
[351308162,1738511448212,-500.0,0.00011232,2]
[351308163,1738511448222,-500.0,0.00011232,2]
[351308164,1738511448231,-500.0,0.00011232,2]
[351308165,1738511448240,-500.0,0.00011232,2]
[351308166,1738511448250,-500.0,0.00011232,2]
[351308167,1738511448260,-500.0,0.00011232,2]
[351308168,1738511448270,-500.0,0.00011232,2]
[351308169,1738511448279,-500.0,0.00011232,2]
[351308170,1738511448289,-500.0,0.00011232,2]
[351308171,1738511448298,-500.0,0.00011232,2]
[351308172,1738511448308,-500.0,0.00011232,2]
[351308173,1738511448317,-500.0,0.00011232,2]
[351308174,1738511448327,-500.0,0.00011232,2]
[351308175,1738511448336,-705.16,0.00011232,2]
[351308176,1738511448346,-531.92,0.00011232,2]
[351308177,1738511448356,-500.0,0.00011232,2]
[351308178,1738511448366,-500.0,0.00011232,2]
[351308179,1738511448375,-500.0,0.00011232,2]
[351308180,1738511448385,-500.0,0.00011232,2]
[351308181,1738511448395,-500.0,0.00011232,2]
[351308182,1738511448404,-500.0,0.00011232,2]
[351308183,1738511448414,-500.0,0.00011232,2]
[351308184,1738511448423,-500.0,0.00011232,2]
[351308185,1738511448432,-500.0,0.00011232,2]
[351308186,1738511448441,-500.0,0.00011232,2]
[351308187,1738511448450,-500.0,0.00011232,2]
[351308188,1738511448460,-500.0,0.00011232,2]
[351308189,1738511448469,-500.0,0.00011232,2]
[351308190,1738511448482,-500.0,0.00011232,2]
[351308191,1738511448492,-500.0,0.00011232,2]
[351308192,1738511448502,-500.0,0.00011232,2]
[351308193,1738511448511,-500.0,0.00011232,2]
[351308194,1738511448520,-500.0,0.00011232,2]
[351308195,1738511448531,-500.0,0.00011232,2]
[351308196,1738511448540,-500.0,0.00011232,2]
[351308197,1738511448551,-500.0,0.00011232,2]
[351308198,1738511448561,-719.85,0.00011232,2]
[351308199,1738511448571,-500.0,0.00011232,2]
[351308200,1738511448581,-594.38,0.00011232,2]
[351308201,1738511448590,-500.0,0.00011232,2]
[351308202,1738511448600,-563.78,0.00011232,2]
[351308203,1738511448609,-500.0,0.00011232,2]
[351308204,1738511448619,-500.0,0.00011232,2]
[351308205,1738511448629,-500.0,0.00011232,2]
[351308206,1738511448640,-500.0,0.00011232,2]
[351308207,1738511448651,-500.0,0.00011232,2]
[351308208,1738511448660,-500.0,0.00011232,2]
[351308209,1738511448670,-500.0,0.00011232,2]
[351308210,1738511448679,-752.42,0.00011232,2]
[351308211,1738511448690,-500.0,0.00011232,2]
[351308212,1738511448700,-500.0,0.00011232,2]
[351308213,1738511448710,-500.0,0.00011232,2]
[351308214,1738511448720,-500.0,0.00011232,2]
[351308215,1738511448730,-500.0,0.00011232,2]
[351308216,1738511448740,-500.0,0.00011232,2]
[351308217,1738511448749,-500.0,0.00011232,2]
[351308218,1738511448759,-500.0,0.00011232,2]
[351308219,1738511448768,-743.8,0.00011232,2]
[351308220,1738511448778,-500.0,0.00011232,2]
[351308221,1738511448788,-500.0,0.00011232,2]
[351308222,1738511448798,-500.0,0.00011232,2]
[351308223,1738511448807,-500.0,0.00011232,2]
[351308224,1738511448817,-500.0,0.00011232,2]
[351308225,1738511448827,-500.0,0.00011232,2]
[351308226,1738511448837,-500.0,0.00011232,2]
[351308227,1738511448847,-500.0,0.00011232,2]
[351308228,1738511448857,-500.0,0.00011232,2]
[351308229,1738511448867,-500.0,0.00011232,2]
[351308230,1738511448877,-500.0,0.00011232,2]
[351308231,1738511448888,-500.0,0.00011232,2]
[351308232,1738511448898,-725.47,0.00011232,2]
[351308233,1738511448908,-764.06,0.00011232,2]
[351308234,1738511448918,-500.0,0.00011232,2]
[351308235,1738511448927,-500.0,0.00011232,2]
[351308236,1738511448936,-500.0,0.00011232,2]
[351308237,1738511448946,-500.0,0.00011232,2]
[351308238,1738511448955,-500.0,0.00011232,2]
[351308239,1738511448965,-500.0,0.00011232,2]
[351308240,1738511448976,-500.0,0.00011232,2]
[351308241,1738511448986,-500.0,0.00011232,2]
[351308242,1738511448996,-500.0,0.00011232,2]
[351308243,1738511449007,-500.0,0.00011232,2]
[351308244,1738511449017,-698.18,0.00011232,2]
[351308245,1738511449027,-791.74,0.00011232,2]
[351308246,1738511449037,-500.0,0.00011232,2]
[351308247,1738511449047,-500.0,0.00011232,2]
[351308248,1738511449058,-807.25,0.00011232,2]
[351308249,1738511449068,-547.53,0.00011232,2]
[351308250,1738511449079,-500.0,0.00011232,2]
[351308251,1738511449089,-545.26143399,0.00011232,2]
[351308252,1738511449099,-500.0,0.00011232,2]
[351308253,1738511449109,-500.0,0.00011232,2]
[351308254,1738511449119,-500.0,0.00011232,2]
[351308255,1738511449129,-500.0,0.00011232,2]
[351308256,1738511449140,-500.0,0.00011232,2]
[351308257,1738511449150,-500.0,0.00011232,2]
[351308258,1738511449160,-500.0,0.00011232,2]
[351308259,1738511449170,-837.73,0.00011232,2]
[351308260,1738511449180,-500.0,0.00011232,2]
[351308261,1738511449189,-500.0,0.00011232,2]
[351308262,1738511449199,-500.0,0.00011232,2]
[351308263,1738511449209,-621.45,0.00011232,2]
[351308264,1738511449218,-500.0,0.00011232,2]
[351308265,1738511449228,-500.0,0.00011232,2]
[351308266,1738511449237,-500.0,0.00011232,2]
[351308267,1738511449247,-631.63,0.00011232,2]
[351308268,1738511449256,-500.0,0.00011232,2]
[351308269,1738511449266,-799.17,0.00011232,2]
[351308270,1738511449276,-500.0,0.00011232,2]
[351308271,1738511449286,-377.07,0.00011232,2]
[351308272,1738511449296,-771.95,0.00011232,2]
[351308273,1738511449306,-500.0,0.00011232,2]
[351308274,1738511449315,-620.52,0.00011232,2]
[351308275,1738511449325,-500.0,0.00011232,2]
[351308276,1738511449335,-500.0,0.00011232,2]
[351308277,1738511449345,-500.0,0.00011232,2]
[351308278,1738511449355,-500.0,0.00011232,2]
[351308279,1738511449365,-500.0,0.00011232,2]
[351308280,1738511449375,-500.0,0.00011232,2]
[351308281,1738511449385,-618.87,0.00011232,2]
[351308282,1738511449399,-500.0,0.00011232,2]
[351308283,1738511449410,-616.27,0.00011232,2]
[351308284,1738511449420,-500.0,0.00011232,2]
[351308285,1738511449430,-500.0,0.00011232,2]
[351308286,1738511449440,-500.0,0.00011232,2]
[351308287,1738511449450,-500.0,0.00011232,2]
[351308288,1738511449460,-500.0,0.00011232,2]
[351308289,1738511449470,-500.0,0.00011232,2]
[351308290,1738511449482,-500.0,0.00011232,2]
[351308291,1738511449491,-565.37,0.00011232,2]
[351308292,1738511449501,-251.50647721,0.00011232,2]
[351308293,1738511449510,-500.0,0.00011232,2]
[351308294,1738511449520,-500.0,0.00011232,2]
[351308295,1738511449531,-500.0,0.00011232,2]
[351308296,1738511449540,-500.0,0.00011232,2]
[351308297,1738511449550,-500.0,0.00011232,2]
[351308298,1738511449562,-500.0,0.00011232,2]
[351308299,1738511449572,-500.0,0.00011232,2]
[351308300,1738511449582,-500.0,0.00011232,2]
[351308301,1738511449592,-500.0,0.00011232,2]
[351308302,1738511449602,-500.0,0.00011232,2]
[351308303,1738511449612,-500.0,0.00011232,2]
[351308304,1738511449621,-528.63074143,0.00011232,2]
[351308305,1738511449631,-500.0,0.00011232,2]
[351308306,1738511449643,-500.0,0.00011232,2]
[351308307,1738511449654,-780.81,0.00011232,2]
[351308308,1738511449664,-500.0,0.00011232,2]
[351308309,1738511449675,-500.0,0.00011232,2]
[351308310,1738511449685,-500.0,0.00011232,2]
[351308311,1738511449695,-584.3,0.00011232,2]
[351308312,1738511449706,-500.0,0.00011232,2]
[351308313,1738511449716,-500.0,0.00011232,2]
[351308314,1738511449727,-500.0,0.00011232,2]
[351308315,1738511449736,-500.0,0.00011232,2]
[351308316,1738511449746,-500.0,0.00011232,2]
[351308317,1738511449757,-500.0,0.00011232,2]
[351308318,1738511449766,-500.0,0.00011232,2]
[351308319,1738511449776,-2943.55,0.00011232,2]
[351308320,1738511449785,-500.0,0.00011232,2]
[351308321,1738511449796,-2686.29,0.00011232,2]
[351308322,1738511449805,-500.0,0.00011232,2]
[351308323,1738511449815,-500.0,0.00011232,2]
[351308324,1738511449825,-500.0,0.00011232,2]
[351308325,1738511449834,-500.0,0.00011232,2]
[351308326,1738511449843,-577.01534422,0.00011232,2]
[351308327,1738511449852,-500.0,0.00011232,2]
[351308328,1738511449862,-500.0,0.00011232,2]
[351308329,1738511449871,-808.37,0.00011232,2]
[351308330,1738511449882,-500.0,0.00011232,2]
[351308331,1738511449896,-794.83,0.00011232,2]
[351308332,1738511449906,-2679.98,0.00011232,2]
[351308333,1738511449916,-506.71247821,0.00011232,2]
[351308334,1738511449926,-500.0,0.00011232,2]
[351308335,1738511449936,-500.0,0.00011232,2]
[351308336,1738511449945,-153.66826318,0.00011232,2]
[351308337,1738511449956,-506.93085651,0.00011232,2]
[351308338,1738511449965,-2338.08,0.00011232,2]
[351308339,1738511449975,-500.0,0.00011232,2]
[351308340,1738511450169,-1073.23,0.00011232,2]
[351308341,1738511450178,-500.0,0.00011232,2]
[351308342,1738511450188,-523.57044494,0.00011232,2]
[351308343,1738511450198,-500.0,0.00011232,2]
[351308344,1738511450207,-500.0,0.00011232,2]
[351308345,1738511450216,-500.0,0.00011232,2]
[351308346,1738511450226,-500.0,0.00011232,2]
[351308347,1738511450235,-500.0,0.00011232,2]
[351308348,1738511450245,-536.29894113,0.00011232,2]
[351308349,1738511450255,-1816.82,0.00011232,2]
[351308350,1738511450264,-1683.79,0.00011232,2]
[351308351,1738511450273,-500.0,0.00011232,2]
[351308352,1738511450283,-500.0,0.00011232,2]
[351308353,1738511450292,-293.66,0.00011232,2]
[351308354,1738511450301,-500.0,0.00011232,2]
[351308355,1738511450311,-500.0,0.00011232,2]
[351308356,1738511450320,-500.0,0.00011232,2]
[351308357,1738511450329,-4162.42,0.00011232,2]
[351308358,1738511450339,-500.0,0.00011232,2]
[351308359,1738511450348,-190.30812803,0.00011232,2]
[351308360,1738511450358,-500.0,0.00011232,2]
[351308361,1738511450367,-3144.7,0.00011232,2]
[351308362,1738511450377,-500.0,0.00011232,2]
[351308363,1738511450386,-500.0,0.00011232,2]
[351308364,1738511450397,-500.0,0.00011232,2]
[351308365,1738511450407,-500.0,0.00011232,2]
[351308366,1738511450416,-500.0,0.00011232,2]
[351308367,1738511450425,-500.0,0.00011232,2]
[351308368,1738511450435,-500.0,0.00011232,2]
[351308369,1738511450445,-500.0,0.00011232,2]
[351308370,1738511450454,-500.0,0.00011232,2]
[351308371,1738511450463,-500.0,0.00011232,2]
[351308372,1738511450473,-500.0,0.00011232,2]
[351308373,1738511450488,-500.0,0.00011232,2]
[351308374,1738511450497,-305.292181,0.00011232,2]
[351308375,1738511450507,-575.75,0.00011232,2]
[351308376,1738511450516,-689.19,0.00011232,2]
[351308377,1738511450525,-1191.99,0.00011232,2]
[351308378,1738511450535,-500.0,0.00011232,2]
[351308379,1738511450544,-500.0,0.00011232,2]
[351308380,1738511450554,-500.0,0.00011232,2]
[351308381,1738511450564,-500.0,0.00011232,2]
[351308382,1738511450574,-851.33,0.00011232,2]
[351308383,1738511450585,-500.0,0.00011232,2]
[351308384,1738511450594,-500.0,0.00011232,2]
[351308385,1738511450603,-500.0,0.00011232,2]
[351308386,1738511450613,-677.75,0.00011232,2]
[351308387,1738511450622,-500.0,0.00011232,2]
[351308388,1738511450632,-500.0,0.00011232,2]
[351308389,1738511450644,-500.0,0.00011232,2]
[351308390,1738511450654,-500.0,0.00011232,2]
[351308391,1738511450663,-500.0,0.00011232,2]
[351308392,1738511450672,-500.0,0.00011232,2]
[351308393,1738511450682,-1595.43,0.00011232,2]
[351308394,1738511450691,-500.0,0.00011232,2]
[351308395,1738511450701,-500.0,0.00011232,2]
[351308396,1738511450711,-500.0,0.00011232,2]
[351308397,1738511450720,-2506.07,0.00011232,2]
[351308398,1738511450730,-500.0,0.00011232,2]
[351308399,1738511450740,-842.15,0.00011232,2]
[351308400,1738511450750,-539.77,0.00011232,2]
[351308401,1738511450759,-500.0,0.00011232,2]
[351308402,1738511450769,-500.0,0.00011232,2]
[351308403,1738511450779,-3571.76,0.00011232,2]
[351308404,1738511450788,-500.0,0.00011232,2]
[351308405,1738511450798,-754.64,0.00011232,2]
[351308406,1738511450807,-500.0,0.00011232,2]
[351308407,1738511450816,-779.97,0.00011232,2]
[351308408,1738511450826,-319.816449,0.00011232,2]
[351308409,1738511450835,-276.44801624,0.00011232,2]
[351308410,1738511450844,-3366.95,0.00011232,2]
[351308411,1738511450854,-500.0,0.00011232,2]
[351308412,1738511450863,-500.0,0.00011232,2]
[351308413,1738511450873,-1388.96,0.00011232,2]
[351308414,1738511450883,-615.64269503,0.00011232,2]
[351308415,1738511450894,-1447.22,0.00011232,2]
[351308416,1738511450905,-500.0,0.00011232,2]
[351308417,1738511450914,-1621.42,0.00011232,2]
[351308418,1738511450924,-500.0,0.00011232,2]
[351308419,1738511450934,-500.0,0.00011232,2]
[351308420,1738511450944,-1280.75,0.00011232,2]
[351308421,1738511450953,-500.0,0.00011232,2]
[351308422,1738511450964,-500.0,0.00011232,2]
[351308423,1738511450974,-500.0,0.00011232,2]
[351308424,1738511450984,-2398.8,0.00011232,2]
[351308425,1738511450993,-986.99,0.00011232,2]
[351308426,1738511451003,-500.0,0.00011232,2]
[351308427,1738511451013,-500.0,0.00011232,2]
[351308428,1738511451023,-500.0,0.00011232,2]
[351308429,1738511451032,-6074.3,0.00011232,2]
[351308430,1738511451042,-500.0,0.00011232,2]
[351308431,1738511451052,-886.37,0.00011232,2]
[351308432,1738511451061,-500.0,0.00011232,2]
[351308433,1738511451071,-1376.7,0.00011232,2]
[351308434,1738511451080,-500.0,0.00011232,2]
[351308435,1738511451090,-500.0,0.00011232,2]
[351308436,1738511451100,-500.0,0.00011232,2]
[351308437,1738511451109,-715.29,0.00011232,2]
[351308438,1738511451119,-1472.49,0.00011232,2]
[351308439,1738511451129,-500.0,0.00011232,2]
[351308440,1738511451138,-500.0,0.00011232,2]
[351308441,1738511451149,-520.69,0.00011232,2]
[351308442,1738511451158,-2816.92,0.00011232,2]
[351308443,1738511451168,-500.0,0.00011232,2]
[351308444,1738511451177,-1537.46,0.00011232,2]
[351308445,1738511451187,-500.0,0.00011232,2]
[351308446,1738511451198,-1782.22,0.00011232,2]
[351308447,1738511451207,-2593.44,0.00011232,2]
[351308448,1738511451217,-500.0,0.00011232,2]
[351308449,1738511451227,-500.0,0.00011232,2]
[351308450,1738511451236,-500.0,0.00011232,2]
[351308451,1738511451246,-500.0,0.00011232,2]
[351308452,1738511451255,-1707.98,0.00011232,2]
[351308453,1738511451265,-814.03,0.00011232,2]
[351308454,1738511451274,-500.0,0.00011232,2]
[351308455,1738511451283,-2517.19,0.00011232,2]
[351308456,1738511451293,-500.0,0.00011232,2]
[351308457,1738511451302,-500.0,0.00011232,2]
[351308458,1738511451312,-500.0,0.00011232,2]
[351308459,1738511451322,-1097.15,0.00011232,2]
[351308460,1738511451332,-3495.99,0.00011232,2]
[351308461,1738511451342,-3686.72,0.00011232,2]
[351308462,1738511451351,-500.0,0.00011232,2]
[351308463,1738511451361,-500.0,0.00011232,2]
[351308464,1738511451371,-873.88,0.00011232,2]
[351308465,1738511451380,-500.0,0.00011232,2]
[351308466,1738511451390,-500.0,0.00011232,2]
[351308467,1738511451400,-500.0,0.00011232,2]
[351308468,1738511451410,-500.0,0.00011232,2]
[351308469,1738511451419,-4032.99,0.00011232,2]
[351308470,1738511451429,-500.0,0.00011232,2]
[351308471,1738511451439,-2612.06,0.00011232,2]
[351308472,1738511451448,-3411.01,0.00011232,2]
[351308473,1738511451457,-2404.98,0.00011232,2]
[351308474,1738511451468,-500.0,0.00011232,2]
[351308475,1738511451477,-500.0,0.00011232,2]
[351308476,1738511451489,-500.0,0.00011232,2]
[351308477,1738511451499,-500.0,0.00011232,2]
[351308478,1738511451511,-500.0,0.00011232,2]
[351308479,1738511451525,-500.0,0.00011232,2]
[351308480,1738511451535,-381.78091449,0.00011232,2]
[351308481,1738511451544,-510.16768844,0.00011232,2]
[351308482,1738511451556,-500.0,0.00011232,2]
[351308483,1738511451565,-513.09550858,0.00011232,2]
[351308484,1738511451575,-866.33,0.00011232,2]
[351308485,1738511451585,-3469.55,0.00011232,2]
[351308486,1738511451594,-500.0,0.00011232,2]
[351308487,1738511451603,-1883.12,0.00011232,2]
[351308488,1738511451612,-500.0,0.00011232,2]
[351308489,1738511451621,-500.0,0.00011232,2]
[351308490,1738511451631,-2058.8,0.00011232,2]
[351308491,1738511451641,-500.0,0.00011232,2]
[351308492,1738511451650,-1319.01,0.00011232,2]
[351308493,1738511451660,-608.43,0.00011232,2]
[351308494,1738511451669,-2391.61,0.00011232,2]
[351308495,1738511451678,-500.0,0.00011232,2]
[351308496,1738511451688,-500.0,0.00011232,2]
[351308497,1738511451698,-500.0,0.00011232,2]
[351308498,1738511451707,-4530.32,0.00011232,2]
[351308499,1738511451717,-500.0,0.00011232,2]
[351308500,1738511451731,-500.0,0.00011232,2]
[351308501,1738511451746,-500.0,0.00011232,2]
[351308502,1738511451756,-507.16108962,0.00011232,2]
[351308503,1738511451766,-1228.14,0.00011232,2]
[351308504,1738511451776,-500.0,0.00011232,2]
[351308505,1738511451786,-500.0,0.00011232,2]
[351308506,1738511451796,-6198.62,0.00011232,2]
[351308507,1738511451806,-500.0,0.00011232,2]
[351308508,1738511451815,-500.0,0.00011232,2]
[351308509,1738511451825,-500.0,0.00011232,2]
[351308510,1738511451835,-500.0,0.00011232,2]
[351308511,1738511451845,-500.0,0.00011232,2]
[351308512,1738511451855,-500.0,0.00011232,2]
[351308513,1738511451865,-500.0,0.00011232,2]
[351308514,1738511451874,-4177.74,0.00011232,2]
[351308515,1738511451884,-853.08,0.00011232,2]
[351308516,1738511451895,-500.0,0.00011232,2]
[351308517,1738511451906,-500.0,0.00011232,2]
[351308518,1738511451916,-500.0,0.00011232,2]
[351308519,1738511451926,-500.0,0.00011232,2]
[351308520,1738511451935,-500.0,0.00011232,2]
[351308521,1738511451945,-500.0,0.00011232,2]
[351308522,1738511451955,-500.0,0.00011232,2]
[351308523,1738511451965,-500.0,0.00011232,2]
[351308524,1738511451974,-669.71,0.00011232,2]
[351308525,1738511451984,-500.0,0.00011232,2]
[351308526,1738511451994,-539.5,0.00011232,2]
[351308527,1738511452003,-500.0,0.00011232,2]
[351308528,1738511452014,-500.0,0.00011232,2]
[351308529,1738511452024,-1402.67,0.00011232,2]
[351308530,1738511452034,-1801.53,0.00011232,2]
[351308531,1738511452044,-1549.92,0.00011232,2]
[351308532,1738511452054,-534.27367589,0.00011232,2]
[351308533,1738511452064,-500.0,0.00011232,2]
[351308534,1738511452073,-165.18643458,0.00011232,2]